Cogmind - Beta 14 @@@ ROGUE MODE // 2024.09.23 @ 03:38:32 Player: Rq Result: Destroyed by D-53 Grenadier with Mini Grenade Launcher Performance ------------- Evolutions (0) 0 Regions Visited (2) 400 Robots Destroyed (28) 140 Value Destroyed (702) 702 Prototype IDs (0) 0 Alien Tech Used (0) 0 Bonus (0) 0 TOTAL SCORE: 1242 Bonus ------- None Cogmind --------- Core Integrity 0/250 Matter 300/300 Energy 100/100 System Corruption 0% Temperature Cool (0) Movement Core (1400) Ox27 Location -10/Mines Parts ------- > --- POWER (1) -------- (None) > --- PROPULSION (2) --- (None) > --- UTILITY (2) ------ Huge Storage Unit Utility Shielding > --- WEAPON (2) ------- Light Assault Rifle > --- INVENTORY (25) --- Ion Engine Ion Engine Light Ion Engine Wheel Wheel Medium Storage Unit High-capacity Matter Pod (200) High-capacity Matter Pod (200) Sensor Array Signal Interpreter Improved Terrain Scanner Hacking Suite Tractor Beam Small Laser Small Laser Light Assault Rifle Grenade Launcher Mining Laser Hammer Peak State ------------ > --- POWER ------------ Ion Engine > --- PROPULSION ------- Aluminum Leg Aluminum Leg > --- UTILITY ---------- Small Storage Unit Improved Terrain Scanner > --- WEAPON ----------- Assault Rifle Light Assault Rifle > --- INVENTORY -------- Light Ion Engine Light Treads Light Treads Compact Wheel Compact Wheel Small Laser [Rating: 9] Favorites ----------- Power Ion Engine Engine Ion Engine Propulsion Light Treads Treads Light Treads Leg Aluminum Leg Utility Utility Shielding Device Improved Terrain Scanner Storage Huge Storage Unit Protection Utility Shielding Weapon Light Assault Rifle Energy Gun Small Laser Ballistic Gun Light Assault Rifle Launcher Grenade Launcher Build | -11 -10 -10 ------- Run | Yrd Mat Min Slots Evolved . | . . . Power . | . . . Propulsion . | . . . Utility . | . . . Weapon . | . . . Parts Attached 17 | 1 16 . Power 2 | . 2 . Engine 2 | . 2 . Core . | . . . Reactor . | . . . Propulsion 4 | . 4 . Treads 4 | . 4 . Leg . | . . . Wheel . | . . . Hover . | . . . Flight . | . . . Utility 4 | 1 3 . Device 1 | 1 . . Storage 2 | . 2 . Processor . | . . . Hackware . | . . . Protection 1 | . 1 . Artifact . | . . . Weapon 7 | . 7 . Energy Gun 3 | . 3 . Energy Cannon . | . . . Ballistic Gun 3 | . 3 . Ballistic Cannon . | . . . Launcher 1 | . 1 . Special Weapon . | . . . Impact Weapon . | . . . Slashing Weapon . | . . . Piercing Weapon . | . . . Special Melee Weapon . | . . . Unidentified Prototypes . | . . . Parts Lost 9 | . 6 3 Power 1 | . 1 . Propulsion 4 | . 2 2 Utility . | . . . Weapon 4 | . 3 1 Highest Loss Streak 3 | . 2 3 To Critical Strikes . | . . . Average Slot Usage (%) 94 | . 97 85 Engine 9 | . 12 . Treads 27 | . 27 28 Storage 14 | . 14 14 Protection 13 | . 13 14 Energy Gun 11 | . 10 14 Ballistic Gun 16 | . 17 14 Peak Build Rating 9 | 9 9 8 Average Rating 7 | 6 8 7 On Entrance 7 | 6 9 8 Naked Turns . | . . . Heaviest Build 89 | 14 89 84 Greatest Support 40 | 20 40 40 Greatest Overweight (x) 2 | . 2 2 Average Overweight (x) 1 | . 1 2 Largest Inventory Capacity 25 | 8 25 25 Average Capacity 20 | 8 19 25 Most Carried 19 | 6 19 19 Average Carried 13 | 6 12 18 Final Capacity 25 | 8 25 25 Final Carried 19 | 6 18 19 Class Distribution -------------------- 100% | Mutant Dominant Class ---------------- Mutant | -10/Materials Mutant | -10/Mines Resources | -11 -10 -10 ----------- Run | Yrd Mat Min Matter Collected 763 | 250 513 . Remotely . | . . . Salvage Created 938 | 107 831 . Parts 55 | 5 50 . Haulers Intercepted . | . . . Recyclers Shooed 2 | . 2 . Parts Field Recycled . | . . . Retrieved Matter . | . . . Parts Self-Destructed . | . . . Prevented . | . . . Kills | -11 -10 -10 ------- Run | Yrd Mat Min Combat Hostiles Destroyed 23 | . 23 . Guns 23 | . 23 . Classes Destroyed 6 | 2 4 . Tunneler 1 | 1 . . Recycler 2 | 1 1 . Operator 1 | . 1 . Watcher 1 | . 1 . Swarmer 6 | . 6 . Grunt 17 | . 17 . Best Kill Streak 3 | 1 3 . Combat Bots Only 3 | . 3 . Max Kills in Single Turn 1 | 1 1 . Gunslinging . | . . . Exploded . | . . . Melee . | . . . Uniques/NPCs Destroyed . | . . . Combat | -11 -10 -10 -------- Run | Yrd Mat Min Hostile Shots Fired 143 | . 136 7 Missed 28 | . 27 1 Damage Taken 1407 | . 1120 287 Core 251 | . 159 92 Absorbed by Shields . | . . . Redirected to Shielding 12 | . 12 . Core Remaining (%) 100 | 100 . . Volleys Fired 116 | 10 104 2 Largest 2 | 2 2 2 Hottest 70 | 40 70 70 Shots Fired 220 | 20 196 4 Gun 219 | 20 195 4 Cannon . | . . . Launcher 1 | . 1 . Special . | . . . Kinetic 151 | 20 129 2 Thermal 68 | . 66 2 Explosive 1 | . 1 . Electromagnetic . | . . . Robot Hit Streak 11 | 1 11 2 Robot Miss Streak 5 | 5 5 3 Penetration Max . | . . . Secondary Targets . | . . . Shots Hit Robots 130 | 6 122 2 Core Hits 58 | 2 55 1 Critical Kills 1 | 1 . . Critical Parts Destroyed 1 | . 1 . Critical Strikes 4 | 1 3 . Burn 2 | . 2 . Destroy 2 | 1 1 . Melee Attacks . | . . . Impact . | . . . Slashing . | . . . Piercing . | . . . Sneak Attacks . | . . . Combat Hostiles . | . . . Follow-up Attacks . | . . . Damage Inflicted 1341 | 59 1260 22 Guns 1332 | 59 1251 22 Cannons . | . . . Explosions . | . . . Melee . | . . . Ramming 9 | . 9 . Kinetic 786 | 59 718 9 Thermal 546 | . 533 13 Explosive . | . . . Electromagnetic . | . . . Impact . | . . . Slashing . | . . . Piercing . | . . . Highest Corruption . | . . . Average Corruption . | . . . Corruption Purged . | . . . Corruption Blocked . | . . . Overload Shots . | . . . Overflow Damage . | . . . Projectiles . | . . . Explosions . | . . . Melee . | . . . Knockbacks . | . . . Impact . | . . . Kinetic . | . . . Secondary . | . . . Self-Inflicted Damage . | . . . Shots . | . . . Rammed 5 | . 5 . Targets Rammed 5 | . 5 . Kicked . | . . . Crushed . | . . . Highest Temperature 183 | . 183 20 Average Temperature 34 | . 35 15 Received Heat Transfer 462 | . 462 . Siege Activations . | . . . Robots Corrupted . | . . . Combat Hostiles . | . . . Parts Fried . | . . . Impact Corruptions . | . . . Robots Melted . | . . . Combat Hostiles . | . . . Parts Melted 4 | . 4 . Heat Transferred 1489 | . 1452 37 Parts Sabotaged . | . . . Parts Stolen . | . . . Parts Stripped . | . . . Power Chain Reactions . | . . . Alert | -11 -10 -10 ------- Run | Yrd Mat Min Peak Influence 252 | 10 252 104 Initial 97 | . 6 97 Average 78 | 5 90 50 Maximum Alert Level 1 | . 1 . Low Security (%) 96 | 100 95 100 Level 1 3 | . 4 . Level 2 . | . . . Level 3 . | . . . Level 4 . | . . . Level 5 . | . . . High Security . | . . . Max Security . | . . . Squads Dispatched 7 | . 7 . Investigation 5 | . 5 . Extermination . | . . . Reinforcement 2 | . 2 . Assault . | . . . Garrison . | . . . Intercept . | . . . Searches Triggered . | . . . Construction Impeded . | . . . Haulers Reinforced . | . . . Active Scanning Responses . | . . . Cargo Convoy Interrupts . | . . . Stealth | -11 -10 -10 --------- Run | Yrd Mat Min Distress Signals 1 | . 1 . Communications Jammed . | . . . Distress Signals . | . . . Times Spotted 46 | . 44 2 Peak Tracking Total 3 | . 3 2 Tactical Retreats 1 | . 1 . Traps | -11 -10 -10 ------- Run | Yrd Mat Min Traps Triggered 2 | . 2 . Indirectly . | . . . Trap Hack Attempts . | . . . Triggered . | . . . Disarmed . | . . . Reprogrammed . | . . . Reused . | . . . Traps Extracted . | . . . Installed . | . . . Triggered . | . . . Machines | -11 -10 -10 ---------- Run | Yrd Mat Min Machines Disabled . | . . . Max in Single Turn . | . . . Machines Repaired . | . . . Machines Dismantled . | . . . Machines Sabotaged . | . . . Overloaded Fab Kills . | . . . Hacking | -11 -10 -10 --------- Run | Yrd Mat Min Machines Accessed 8 | . 7 1 Terminals 6 | . 5 1 Fabricators . | . . . Repair Stations . | . . . Recycling Units 2 | . 2 . Scanalyzers . | . . . Garrison Access . | . . . Total Hacks 18 | . 14 4 Successful 8 | . 5 3 Failed 10 | . 9 1 Catastrophic 2 | . 1 1 Database Lockouts . | . . . Manual 14 | . 10 4 Terminals 16 | . 12 4 Fabricators . | . . . Repair Stations . | . . . Recycling Units 2 | . 2 . Scanalyzers . | . . . Garrison Access . | . . . Terminal Hacks 6 | . 3 3 Part Schematic 1 | . . 1 Robot Analysis 3 | . 1 2 Locate Traps 2 | . 2 . Fabricator Hacks . | . . . Repair Station Hacks . | . . . Recycling Unit Hacks . | . . . Scanalyzer . | . . . Garrison Access Hacks . | . . . Unauthorized Hacks 2 | . 2 . Terminals . | . . . Fabricators . | . . . Repair Stations . | . . . Recycling Units 2 | . 2 . Tunnel 2 | . 2 . Scanalyzers . | . . . Garrison Access . | . . . Data Cores Recovered . | . . . Used . | . . . Hacking Detections 6 | . 5 1 Full Trace Events 1 | . 1 . Feedback Events . | . . . Feedback Blocked . | . . . Robot Schematics Acquired . | . . . Robots Built . | . . . Authchips . | . . . Time . | . . . Total Robot Build Rating . | . . . Part Schematics Acquired 1 | . . 1 Parts Built . | . . . Authchips . | . . . Time . | . . . Total Part Build Rating . | . . . Parts Repaired . | . . . Time . | . . . Parts Recycled . | . . . Recycled Matter . | . . . Retrieved Matter . | . . . Retrieved Components . | . . . Parts Scanalyzed . | . . . Part Schematics Acquired . | . . . Parts Damaged . | . . . Bothacking | -11 -10 -10 ------------ Run | Yrd Mat Min Used RIF Installer . | . . . Robots Hacked . | . . . Non-combat . | . . . Combat . | . . . Robot Hacks Applied . | . . . Relay Couplers Released . | . . . Fabnet Peak Effective % . | . . . Robots Rewired . | . . . Allies Hacked . | . . . Hacks Repelled . | . . . Allies | -11 -10 -10 -------- Run | Yrd Mat Min Total Allies . | . . . Largest Group . | . . . Highest-Rated Group . | . . . Highest-Rated Ally . | . . . Total Orders . | . . . Ally Attacks . | . . . Total Damage . | . . . Kills . | . . . Allies Corrupted . | . . . Allies Melted . | . . . Intel | -11 -10 -10 ------- Run | Yrd Mat Min Robot Analysis Total 3 | . 1 2 Derelict Logs Recovered . | . . . Drone Launches . | . . . Drone Recoveries . | . . . Exploration | -11 -10 -10 ------------- Run | Yrd Mat Min Turns Passed 3244 | 70 2349 825 Spaces Moved 1100 | 34 810 256 Core . | . . . Treads 1040 | . 784 256 Legs 60 | 34 26 . Wheels . | . . . Hover . | . . . Flight . | . . . Fastest Speed 120 | 120 120 320 Average Speed 258 | 120 244 320 Slowest Speed 320 | 120 320 320 Overloaded Moves . | . . . Propulsion Burnouts . | . . . Robots Hopped . | . . . Cave-ins Triggered . | . . . Exploration Rate (%) 52 | 3 98 57 Regions Visited 2 Branch Regions 1 Pre-discovered Areas 2 | . 2 . Known Exits Taken . | . . . Unknown Exits Taken 2 | 1 1 . Scrap Searched . | . . . Spaces Dug 8 | . 8 . Terrain Destroyed 8 | . 8 . Melee . | . . . Projectile . | . . . AOE 8 | . 8 . Terrain Rammed . | . . . Walls Destroyed . | . . . Machines Disabled . | . . . Actions | -11 -10 -10 --------- Run | Yrd Mat Min Total 1300 | 44 997 259 Wait 33 | . 33 . Move 1098 | 33 809 256 Hop . | . . . Pick Up 21 | . 20 1 Fast Attach 2 | 1 1 . Attach 7 | . 7 . Detach 1 | . 1 . Swap 8 | . 8 . Drop 9 | . 9 . Fire 116 | 10 104 2 Melee . | . . . Ram . | . . . Kick . | . . . Crush 5 | . 5 . Escape Stasis . | . . . Rewire . | . . . Trap . | . . . Miscellaneous . | . . . Route ------- -11/Scrapyard -10/Materials (discovered 5 exits: [*Mat x3] / *Min x2) -10/Mines (discovered 3 exits: [*Mat x2] / [*Exi]) History --------- Turn | Location | Event 1 | -11/Scrapyard | Discovered new exit (range 3) 71 | -11/Scrapyard | Entered Materials 316 | -10/Materials | Build established: Mutant 439 | -10/Materials | Discovered new exit (range 5) 604 | -10/Materials | Discovered new exit (range 7) 1325 | -10/Materials | Discovered new exit (range 11) 1611 | -10/Materials | Discovered new exit (range 16) 2186 | -10/Materials | Discovered new exit (range 6) 2305 | -10/Materials | Core integrity fell below 50% 2420 | -10/Materials | Entered Mines 2729 | -10/Mines | Discovered new exit (range 11) 2754 | -10/Mines | Deemed a non-threat by the Exiles lab entrance 2754 | -10/Mines | Discovered new exit (range 5) 3229 | -10/Mines | Assembled infested the area 3234 | -10/Mines | Assisted by a Guerilla fighting off Assembled 3241 | -10/Mines | Discovered new exit (range 11) 3245 | -10/Mines | Core integrity fell below 20% 3245 | -10/Mines | Destroyed by D-53 Grenadier with Mini Grenade Launcher Last Messages --------------- 02525_ K-01 Serf collects debris. 02590_ Acquired Hcp. Matter Pod. 02654_ K-01 Serf collects debris. 02729_ EXIT=FOUND 02754_ "No threat detected, you may enter." 02754_ EXIT=FOUND 02827_ T-07 Excavator is excavating. 03229_ ALERT: Infestation in the mines, dispatching Demolisher response squad. 03234_ A derelict emerges from the shadows: "You need to get out of here! I've been tracking a group of Assembled to figure out where they're coming from, and they're closing on this area, come on!" 03234_ CN-YHP(h): "I'll hold them off! Go on ahead or try to find another way!" 03235_ CN-YHP(h) destroyed. 03239_ The unstable cave ceiling collapses. 03241_ EXIT=FOUND 03243_ Med. Laser destroyed. 03244_ The unstable cave ceiling collapses. 03245_ Lgt. Treads destroyed. Map ----- +----------------------------------------------------+ | ### ##? #??????????????????????????????? | | ## #? #??????????????????????????????? | | #### ## #? #???????????????????????????????? | | ???# ## #???????????????????????????????? | | ???# #???????????????????????????????? | | ???####### #???????????????????????????????? | | ?????????# """ ##???????????????????????????????? | | ?####????# """ #????????????????????????????????? | | ## ##???# """ #????????????????????????????????? | | # ###?## #????????????????????????????????? | | # ##?## #????????????????????????????????? | | #??# ##????????????????????????????????? | | #?## #?????????????????????????????????? | | #### #?????????????????????????????????? | | ##?# #?????????????????????????????????? | | ##??# #?????????????????????????????????? | | #???## #??????????????#??????????????????? | | ##???#### #????????????? ####???????????????? | | ##?????# #????????????# ????????????????? | | #?????# #??????###### ##????????????????? | | ## #?????# #????### # #????????????????? | | ?# #?????# #????# ##???????????????? | | ?# ##?????# #????# * ### ????????? | | ?# ###??????# ###### % ????????? | | ## #????????# ????????? | | # ##???????######### @ t ????????? | | ##????????????# # ????????? | | ## #????????????## ##????????????????? | | #### #???????????? # d #?????????????????? | | #?## #???????????##?## d% ????????????????? | | ### #???????????????####=%| #??????????????? | | ?# #??????????????????? * #??????????????? | | ?# ##??????????????????? ##??????????????? | | ?# ##??????????????????? ##???????????????? | | ?## ##?????????????????? < #????????????????? | | ??# #?????????????????? #????????????????? | | ??# #?????????????????? #????????????????? | | ??## #??????????????????? ????????????????? | | ???#####??????????????????? ????????????????? | | ???????????????????????????# ???????????????????? | | ?????????????????????????????????????????????????? | | ?????????????????????????????????????????????????? | | ?????????????????????????????????????????????????? | | ?????????????????????????????????????????????????? | | ?????????????????????????????????????????????????? | | ?????????????????????????????????????????????????? | | | | | | | | | +----------------------------------------------------+ Best States ------------- Heat Dissipation 25 Energy Generation 10 Energy Capacity 250 Matter Stores 300 Matter Capacity 300 Sight Range 16 Terrain Scan Range 16 Terrain Scan Density 10 Utility Shielding 33 Evasion (%) 55 Recoil Reduction 2 Item Schematics ----------------- Huge Storage Unit | -10/Mines | Hacked Robot Schematics ------------------ None Fabricated ------------ Nothing Alien Tech Used ----------------- None Achievements -------------- None Challenges ------------ None Game ------ Seed AssemblyVampiricStabilizer Manual? 0 Play Time 00:12:54 Cumulative 153.6 hours Start 2024.09.23 @ 03:27:21 End 2024.09.23 @ 03:38:32 Sessions 1 Manual Loads 0 Difficulty Rogue Special Mode None Game No. 205 Rogue 205 Adventurer 0 Explorer 0 Win Type - Total 1 Types 1/0/0/0/0/0/0/0/0 Lore% 50 Gallery% 61 Achievement% 49 Wizard Run 0 Options --------- Layout 0 ASCII 0 Keyboard 0 Movement Mouse Keybinds 1 Fullscreen 2 Font 18/TerminusBold Map View 76x50 Zoom Use 0% Tactical HUD 1 Map Filters NONE Filters NONE Steam 0 RUN: 3bb90690-3f10-49ae-b7c2-1133a219fd77